fUSD/lending_fUSD_20250227
["ID","MTS","AMOUNT","RATE_DAILY","PERIOD"]
[354692830,1740622233190,-2574.75,0.00050889,2]
[354692831,1740622233200,-500.0,0.00050898,120]
[354692832,1740622233209,-500.0,0.00050898,120]
[354692833,1740622233218,-241.25812157,0.00050899,71]
[354692834,1740622233230,-98142.67874054,0.00050899,52]
[354692835,1740622233240,-500.0,0.00050899,120]
[354692836,1740622233250,-500.0,0.00050899,120]
[354692837,1740622233259,-500.0,0.00050899,120]
[354692838,1740622233269,-500.0,0.00050899,120]
[354692839,1740622233278,-500.0,0.00050899,120]
[354692840,1740622233288,-500.0,0.00050899,120]
[354692841,1740622233298,-500.0,0.00050899,120]
[354692842,1740622233307,-500.0,0.00050899,120]
[354692843,1740622233316,-500.0,0.00050899,120]
[354692844,1740622233325,-500.0,0.00050899,120]
[354692845,1740622233335,-500.0,0.00050899,120]
[354692846,1740622233344,-500.0,0.00050899,120]
[354692847,1740622233354,-500.0,0.00050899,120]
[354692848,1740622233363,-563.48733665,0.00050899,120]
[354692849,1740622233373,-625.60084369,0.00050899,120]
[354692850,1740622233383,-500.0,0.00050899,120]
[354692851,1740622233393,-500.0,0.00050899,120]
[354692852,1740622233403,-500.0,0.00050899,120]
[354692853,1740622233412,-500.0,0.00050899,120]
[354692854,1740622233422,-500.0,0.00050899,120]
[354692855,1740622233431,-500.0,0.00050899,120]
[354692856,1740622233441,-500.0,0.00050899,120]
[354692857,1740622233450,-500.0,0.00050899,120]
[354692858,1740622233459,-500.0,0.00050899,120]
[354692859,1740622233469,-500.0,0.00050899,120]
[354692860,1740622233478,-500.0,0.00050899,120]
[354692861,1740622233488,-500.0,0.00050899,120]
[354692862,1740622233497,-500.0,0.00050899,120]
[354692863,1740622233507,-500.0,0.00050899,120]
[354692864,1740622233516,-500.0,0.00050899,120]
[354692865,1740622233526,-500.0,0.00050899,120]
[354692866,1740622233535,-500.0,0.00050899,120]
[354692867,1740622233544,-500.0,0.00050899,120]
[354692868,1740622233556,-500.0,0.00050899,120]
[354692869,1740622233566,-500.0,0.00050899,120]
[354692870,1740622233575,-872.45,0.00050899,120]
[354692871,1740622233585,-500.0,0.00050899,120]
[354692872,1740622233594,-500.0,0.00050899,30]
[354692873,1740622233603,-500.0,0.00050899,120]
[354692874,1740622233613,-158.33772101,0.00050899,120]
[354692878,1740622237928,-500.0,0.00050898,120]
[354692879,1740622237938,-158.13381781,0.00050899,120]
[354692880,1740622237950,-183.52846118,0.00050899,120]
[354692881,1740622237959,-299.11153982,0.00050899,120]
[354692882,1740622237971,-200.88846018,0.00050899,120]
[354692883,1740622237983,-500.0,0.00050899,120]
[354692884,1740622237994,-111.01152482,0.00050899,120]
[354692885,1740622238024,-388.98847518,0.00050899,120]
[354692886,1740622238034,-500.0,0.00050899,120]
[354692887,1740622238044,-500.0,0.00050899,120]
[354692888,1740622238053,-500.0,0.00050899,120]
[354692889,1740622238063,-500.0,0.00050899,120]
[354692890,1740622238072,-500.0,0.00050899,120]
[354692891,1740622238081,-500.0,0.00050899,120]
[354692892,1740622238091,-500.0,0.00050899,120]
[354692893,1740622238100,-500.0,0.00050899,120]
[354692894,1740622238109,-500.0,0.00050899,120]
[354692895,1740622238118,-500.0,0.00050899,120]
[354692896,1740622238127,-500.0,0.00050899,120]
[354692897,1740622238136,-500.0,0.00050899,120]
[354692898,1740622238145,-274.63482026,0.00050899,120]
[354692899,1740622238154,-500.0,0.00050899,120]
[354692900,1740622238163,-500.0,0.00050899,120]
[354692901,1740622238172,-550.4554444,0.00050899,120]
[354692902,1740622238182,-500.0,0.00050899,120]
[354692903,1740622238191,-153.932095,0.00050899,120]
[354692904,1740622238201,-500.0,0.00050899,120]
[354692905,1740622238211,-213.3694766,0.00050899,120]
[354692906,1740622238326,-286.6305234,0.00050899,120]
[354692907,1740622238336,-500.0,0.00050899,120]
[354692908,1740622238345,-158.031699,0.00050899,120]
[354692909,1740622238355,-32.3607131,0.00050899,120]
[354692910,1740622238366,-467.6392869,0.00050899,120]
[354692911,1740622238375,-492.3607131,0.00050899,120]
[354692912,1740622238386,-7.6392869,0.00050899,120]
[354692913,1740622238395,-500.0,0.00050899,120]
[354692914,1740622238404,-98.9607131,0.00050899,120]
[354692915,1740622238416,-401.0392869,0.00050899,120]
[354692916,1740622238425,-500.0,0.00050899,120]
[354692917,1740622238434,-105.3007131,0.00050899,120]
[354692918,1740622238464,-394.6992869,0.00050899,120]
[354692919,1740622238473,-500.0,0.00050899,120]
[354692920,1740622238484,-500.0,0.00050899,120]
[354692921,1740622238493,-1612.731499,0.00050899,120]
[354692922,1740622238503,-500.0,0.00050899,120]
[354692923,1740622238511,-500.0,0.00050899,120]
[354692924,1740622238521,-500.0,0.00050899,120]
[354692925,1740622238530,-483.7354162,0.00050899,120]
[354692926,1740622238539,-500.0,0.00050899,120]
[354692927,1740622238548,-500.0,0.00050899,120]
[354692928,1740622238557,-500.0,0.00050899,120]
[354692929,1740622238566,-269.68837675,0.00050899,120]
[354692930,1740622238575,-500.0,0.00050899,120]
[354692931,1740622238584,-500.0,0.00050899,120]
[354692932,1740622238593,-500.0,0.00050899,120]
[354692933,1740622238603,-507.45276572,0.00050899,120]
[354692934,1740622238612,-500.0,0.00050899,120]
[354692935,1740622238621,-500.0,0.00050899,120]
[354692936,1740622238630,-500.0,0.00050899,120]
[354692937,1740622238639,-1131.341062,0.00050899,120]
[354692938,1740622238648,-258.24376399,0.00050899,120]
[354692939,1740622238657,-500.0,0.00050899,120]
[354692940,1740622238666,-505.52053868,0.00050899,120]
[354692941,1740622238675,-500.0,0.00050899,120]
[354692942,1740622238684,-181.77,0.00050899,120]
[354692943,1740622238693,-500.0,0.00050899,120]
[354692944,1740622238702,-500.0,0.00050899,120]
[354692945,1740622238711,-500.0,0.00050899,120]
[354692946,1740622238720,-500.0,0.00050899,120]
[354692947,1740622238729,-500.0,0.00050899,120]
[354692948,1740622238739,-500.0,0.00050899,120]
[354692949,1740622238748,-500.0,0.00050899,120]
[354692950,1740622238757,-500.0,0.00050899,120]
[354692951,1740622238766,-500.0,0.00050899,120]
[354692952,1740622238775,-500.0,0.00050899,120]
[354692953,1740622238784,-500.0,0.00050899,120]
[354692954,1740622238795,-500.0,0.00050899,120]
[354692955,1740622238805,-500.0,0.00050899,120]
[354692956,1740622238814,-500.0,0.00050899,120]
[354692957,1740622238823,-500.0,0.00050899,120]
[354692958,1740622238832,-500.0,0.00050899,120]
[354692959,1740622238842,-380.27679333,0.00050899,120]
[354692960,1740622238858,-119.72320667,0.00050899,120]
[354692961,1740622238867,-495.09315885,0.00050899,120]
[354692962,1740622238881,-4.90684115,0.00050899,120]
[354692963,1740622238890,-500.0,0.00050899,120]
[354692964,1740622238899,-105.94315865,0.00050899,120]
[354692965,1740622239993,-394.05684135,0.00050899,120]
[354692966,1740622240003,-500.0,0.00050899,120]
[354692967,1740622240013,-500.0,0.00050899,120]
[354692968,1740622240022,-500.0,0.00050899,120]
[354692969,1740622240031,-500.0,0.00050899,120]
[354692970,1740622240041,-508.06739212,0.00050899,120]
[354692971,1740622240050,-500.0,0.00050899,120]
[354692972,1740622240059,-500.0,0.00050899,120]
[354692973,1740622240069,-500.0,0.00050899,120]
[354692974,1740622240078,-506.15973508,0.00050899,120]
[354692975,1740622240087,-532.91593405,0.00050899,120]
[354692976,1740622240097,-342.09005635,0.00050899,120]
[354692977,1740622240120,-157.90994365,0.00050899,120]
[354692978,1740622240130,-507.19730102,0.00050899,120]
[354692979,1740622240139,-500.0,0.00050899,120]
[354692980,1740622240149,-501.56718132,0.00050899,120]
[354692981,1740622240159,-507.57275529,0.00050899,120]
[354692982,1740622240167,-330.39688919,0.00050899,120]
[354692983,1740622240262,-172.47450773,0.00050899,120]
[354692984,1740622240272,-500.0,0.00050899,120]
[354692985,1740622240281,-503.07291194,0.00050899,120]
[354692986,1740622240290,-506.7013939,0.00050899,120]
[354692987,1740622240300,-501.5837237,0.00050899,120]
[354692988,1740622240310,-500.0,0.00050899,120]
[354692989,1740622240319,-500.0,0.00050899,120]
[354692990,1740622240328,-500.0,0.00050899,120]
[354692991,1740622240338,-502.78810505,0.00050899,120]
[354692992,1740622240347,-500.0,0.00050899,120]
[354692993,1740622240356,-500.0,0.00050899,120]
[354692994,1740622240365,-228.47519876,0.00050899,120]
[354692995,1740622240377,-273.51009258,0.00050899,120]
[354692996,1740622240386,-500.0,0.00050899,120]
[354692997,1740622240396,-506.45669776,0.00050899,120]
[354692998,1740622240406,-500.0,0.00050899,120]
[354692999,1740622240415,-347.96717693,0.00050899,120]
[354693000,1740622240427,-152.03282307,0.00050899,120]
[354693001,1740622240436,-146.48154642,0.00050899,120]
[354693002,1740622240447,-368.9777686,0.00050899,120]
[354693003,1740622240456,-500.0,0.00050899,120]
[354693004,1740622240467,-500.0,0.00050899,120]
[354693005,1740622240475,-407.64058996,0.00050899,120]
[354693006,1740622240489,-96.12530352,0.00050899,120]
[354693007,1740622240498,-500.0,0.00050899,120]
[354693008,1740622240507,-500.0,0.00050899,120]
[354693009,1740622240516,-189.43932587,0.00050899,120]
[354693010,1740622240527,-311.82237101,0.00050899,120]
[354693011,1740622240536,-391.77617233,0.00050899,120]
[354693012,1740622240547,-108.22382767,0.00050899,120]
[354693013,1740622240556,-462.0305766,0.00050899,120]
[354693014,1740622240702,-37.9694234,0.00050899,120]
[354693015,1740622240712,-504.05503162,0.00050899,120]
[354693016,1740622240721,-500.0,0.00050899,120]
[354693017,1740622240730,-500.0,0.00050899,120]
[354693018,1740622240742,-497.43653731,0.00050899,120]
[354693019,1740622240751,-197.15363893,0.00050899,120]
[354693020,1740622240763,-302.84636107,0.00050899,120]
[354693021,1740622240772,-47.15363893,0.00050899,120]
[354693022,1740622240829,-452.84636107,0.00050899,120]
[354693023,1740622240842,-500.0,0.00050899,120]
[354693024,1740622240852,-500.0,0.00050899,120]
[354693025,1740622240861,-500.0,0.00050899,120]
[354693026,1740622240872,-500.0,0.00050899,120]
[354693027,1740622240881,-500.0,0.00050899,120]
[354693028,1740622240890,-251.60467455,0.00050899,120]
[354693029,1740622240899,-316.68418179,0.00050899,120]
[354693030,1740622240909,-500.0,0.00050899,120]
[354693031,1740622240918,-192.92192662,0.00050899,120]
[354693032,1740622240928,-500.0,0.00050899,120]
[354693033,1740622240937,-162.39472739,0.00050899,120]
[354693034,1740622240947,-500.0,0.00050899,120]
[354693035,1740622240956,-500.0,0.00050899,120]
[354693036,1740622240966,-500.0,0.00050899,120]
[354693037,1740622240975,-500.0,0.00050899,120]
[354693038,1740622240985,-500.0,0.00050899,120]
[354693039,1740622240996,-500.0,0.00050899,120]
[354693040,1740622241006,-505.4262561,0.00050899,120]
[354693041,1740622241016,-500.0,0.00050899,120]
[354693042,1740622241026,-500.0,0.00050899,120]
[354693043,1740622241035,-505.34924407,0.00050899,120]
[354693044,1740622241044,-500.0,0.00050899,120]
[354693045,1740622241054,-505.59730553,0.00050899,120]
[354693046,1740622241063,-500.0,0.00050899,120]
[354693047,1740622241072,-507.19060337,0.00050899,120]
[354693048,1740622241082,-500.0,0.00050899,120]
[354693049,1740622241091,-500.0,0.00050899,120]
[354693050,1740622241100,-500.0,0.00050899,40]
[354693051,1740622241109,-500.0,0.00050899,120]
[354693052,1740622241119,-500.0,0.00050899,120]
[354693053,1740622241128,-500.0,0.00050899,120]
[354693054,1740622241138,-500.0,0.00050899,120]
[354693055,1740622241147,-500.0,0.00050899,120]
[354693056,1740622241156,-504.17047037,0.00050899,120]
[354693057,1740622241165,-500.0,0.00050899,120]
[354693058,1740622241175,-500.0,0.00050899,120]
[354693059,1740622241185,-506.46101444,0.00050899,120]
[354693060,1740622241194,-494.80800111,0.00050899,120]
[354693061,1740622241203,-500.0,0.00050899,120]
[354693062,1740622241216,-500.0,0.00050899,120]
[354693063,1740622241226,-500.0,0.00050899,120]
[354693064,1740622241236,-500.0,0.00050899,120]
[354693065,1740622241246,-500.0,0.00050899,120]
[354693066,1740622241255,-500.0,0.00050899,120]
[354693067,1740622241264,-500.0,0.00050899,120]
[354693068,1740622241273,-500.0,0.00050899,120]
[354693069,1740622241283,-500.0,0.00050899,120]
[354693070,1740622241292,-515.51678683,0.00050899,120]
[354693071,1740622241301,-455.06364202,0.00050899,120]
[354693072,1740622241310,-503.55748657,0.00050899,120]
[354693073,1740622241319,-503.73936229,0.00050899,120]
[354693074,1740622241329,-500.0,0.00050899,120]
[354693075,1740622241339,-500.0,0.00050899,120]
[354693076,1740622241348,-504.85096381,0.00050899,25]
[354693077,1740622241358,-500.0,0.00050899,120]
[354693078,1740622241368,-378.25938926,0.00050899,120]
[354693079,1740622241377,-500.0,0.00050899,120]
[354693080,1740622241387,-500.0,0.00050899,120]
[354693081,1740622241396,-500.0,0.00050899,120]
[354693082,1740622241406,-500.0,0.00050899,120]
[354693083,1740622241415,-500.0,0.00050899,120]
[354693084,1740622241425,-500.0,0.00050899,120]
[354693085,1740622241434,-333.58843904,0.00050899,120]
[354693086,1740622241444,-500.0,0.00050899,120]
[354693087,1740622241453,-500.0,0.00050899,120]
[354693088,1740622241462,-500.0,0.00050899,120]
[354693089,1740622241472,-558.80451554,0.00050899,120]
[354693090,1740622241482,-500.0,0.00050899,120]
[354693091,1740622241492,-394.66997043,0.00050899,120]
[354693092,1740622241502,-500.0,0.00050899,120]
[354693093,1740622241512,-500.0,0.00050899,120]
[354693094,1740622241521,-500.0,0.00050899,120]
[354693095,1740622241531,-544.50323438,0.00050899,120]
[354693096,1740622241540,-503.89611187,0.00050899,120]
[354693097,1740622241550,-508.81969906,0.00050899,120]
[354693098,1740622241559,-500.0,0.00050899,120]
[354693099,1740622241569,-500.0,0.00050899,120]
[354693100,1740622241579,-500.0,0.00050899,120]
[354693101,1740622241588,-500.0,0.00050899,120]
[354693102,1740622241598,-500.0,0.00050899,120]
[354693103,1740622241607,-500.0,0.00050899,120]
[354693104,1740622241616,-513.83768287,0.00050899,120]
[354693105,1740622241626,-500.0,0.00050899,120]
[354693106,1740622241635,-500.0,0.00050899,120]
[354693107,1740622241644,-500.0,0.00050899,120]
[354693108,1740622241653,-500.0,0.00050899,120]
[354693109,1740622241663,-500.0,0.00050899,120]
[354693110,1740622241672,-551.30689083,0.00050899,120]
[354693111,1740622241682,-500.0,0.00050899,120]
[354693112,1740622241691,-161.13866225,0.00050899,120]
[354693113,1740622241700,-500.0,0.00050899,120]
[354693114,1740622241710,-509.35196434,0.00050899,120]
[354693115,1740622241719,-500.0,0.00050899,120]
[354693116,1740622241728,-500.0,0.00050899,120]
[354693117,1740622241739,-503.67625628,0.00050899,120]
[354693118,1740622241748,-500.0,0.00050899,120]
[354693119,1740622241758,-500.0,0.00050899,120]
[354693120,1740622241767,-500.0,0.00050899,120]
[354693121,1740622241777,-506.01580926,0.00050899,120]
[354693122,1740622241786,-506.24524971,0.00050899,120]
[354693123,1740622241797,-500.0,0.00050899,120]
[354693124,1740622241809,-500.0,0.00050899,120]
[354693125,1740622241819,-500.0,0.00050899,120]
[354693126,1740622241828,-547.19410825,0.00050899,120]
[354693127,1740622241838,-500.0,0.00050899,120]
[354693128,1740622241848,-500.0,0.00050899,120]
[354693129,1740622241858,-503.73532304,0.00050899,120]
[354693130,1740622241867,-500.0,0.00050899,120]
[354693131,1740622241877,-500.0,0.00050899,120]
[354693132,1740622241887,-500.0,0.00050899,120]
[354693133,1740622241897,-500.0,0.00050899,120]
[354693134,1740622241907,-500.0,0.00050899,7]
[354693135,1740622241916,-500.0,0.00050899,120]
[354693136,1740622241926,-500.0,0.00050899,120]
[354693137,1740622241935,-515.88064143,0.00050899,120]
[354693138,1740622241944,-500.0,0.00050899,120]
[354693139,1740622241954,-500.0,0.00050899,120]
[354693140,1740622241963,-500.0,0.00050899,120]
[354693141,1740622241972,-500.0,0.00050899,120]
[354693142,1740622241982,-500.0,0.00050899,120]
[354693143,1740622241993,-500.0,0.00050899,120]
[354693144,1740622242003,-500.0,0.00050899,120]
[354693145,1740622242012,-500.0,0.00050899,120]
[354693146,1740622242022,-507.16290159,0.00050899,120]
[354693147,1740622242032,-501.89431326,0.00050899,120]
[354693148,1740622242041,-500.0,0.00050899,120]
[354693149,1740622242051,-500.0,0.00050899,120]
[354693150,1740622242060,-506.45868655,0.00050899,120]
[354693151,1740622242070,-500.0,0.00050899,120]
[354693152,1740622242079,-500.0,0.00050899,120]
[354693153,1740622242089,-500.0,0.00050899,120]
[354693154,1740622242099,-500.0,0.00050899,120]
[354693155,1740622242108,-500.0,0.00050899,120]
[354693156,1740622242118,-500.0,0.00050899,120]
[354693157,1740622242128,-500.0,0.00050899,120]
[354693158,1740622242138,-500.0,0.00050899,120]
[354693159,1740622242148,-500.0,0.00050899,120]
[354693160,1740622242159,-500.0,0.00050899,60]
[354693161,1740622242168,-500.0,0.00050899,120]
[354693162,1740622242179,-500.0,0.00050899,120]
[354693163,1740622242188,-500.0,0.00050899,120]
[354693164,1740622242198,-500.0,0.00050899,120]
[354693165,1740622242208,-500.0,0.00050899,120]
[354693166,1740622242218,-500.0,0.00050899,120]
[354693167,1740622242227,-500.0,0.00050899,120]
[354693168,1740622242238,-500.0,0.00050899,120]
[354693169,1740622242247,-500.0,0.00050899,120]
[354693170,1740622242257,-500.0,0.00050899,120]
[354693171,1740622242266,-500.0,0.00050899,120]
[354693172,1740622242275,-500.0,0.00050899,120]
[354693173,1740622242284,-500.0,0.00050899,120]
[354693174,1740622242293,-500.0,0.00050899,120]
[354693175,1740622242303,-506.09071865,0.00050899,120]
[354693176,1740622242312,-500.0,0.00050899,120]
[354693177,1740622242321,-500.0,0.00050899,120]
[354693178,1740622242330,-500.0,0.00050899,120]
[354693179,1740622242339,-500.0,0.00050899,120]
[354693180,1740622242348,-500.0,0.00050899,120]
[354693181,1740622242358,-500.0,0.00050899,120]
[354693182,1740622242367,-500.0,0.00050899,120]
[354693183,1740622242376,-500.0,0.00050899,120]
[354693184,1740622242386,-500.0,0.00050899,120]
[354693185,1740622242395,-500.0,0.00050899,120]
[354693186,1740622242405,-497.08793143,0.00050899,120]
[354693187,1740622242414,-500.0,0.00050899,120]
[354693188,1740622242423,-503.1730321,0.00050899,120]
[354693189,1740622242433,-500.0,0.00050899,120]
[354693190,1740622242442,-500.0,0.00050899,120]
[354693191,1740622242453,-500.0,0.00050899,120]
[354693192,1740622242462,-500.0,0.00050899,120]
[354693193,1740622242471,-500.0,0.00050899,120]
[354693194,1740622242481,-481.05503936,0.00050899,120]
[354693195,1740622242492,-500.0,0.00050899,120]
[354693196,1740622242502,-500.0,0.00050899,120]
[354693197,1740622242511,-504.76890798,0.00050899,120]
[354693198,1740622242521,-500.0,0.00050899,120]
[354693199,1740622242530,-500.0,0.00050899,120]
[354693200,1740622242539,-500.0,0.00050899,120]
[354693201,1740622242548,-500.0,0.00050899,120]
[354693202,1740622242558,-500.0,0.00050899,120]
[354693203,1740622242567,-500.0,0.00050899,120]
[354693204,1740622242576,-502.35471486,0.00050899,7]
[354693205,1740622242585,-500.0,0.00050899,120]
[354693206,1740622242594,-500.0,0.00050899,120]
[354693207,1740622242603,-526.7063789,0.00050899,120]
[354693208,1740622242612,-500.0,0.00050899,120]
[354693209,1740622242622,-500.0,0.00050899,120]
[354693210,1740622242631,-500.0,0.00050899,120]
[354693211,1740622242640,-504.41583532,0.00050899,120]
[354693212,1740622242650,-500.0,0.00050899,120]
[354693213,1740622242659,-500.0,0.00050899,120]
[354693214,1740622242669,-500.0,0.00050899,120]
[354693215,1740622242678,-500.0,0.00050899,120]
[354693216,1740622242687,-500.0,0.00050899,120]
[354693217,1740622242697,-500.0,0.00050899,120]
[354693218,1740622242706,-500.0,0.00050899,120]
[354693219,1740622242715,-500.0,0.00050899,120]
[354693220,1740622242724,-500.0,0.00050899,120]
[354693221,1740622242734,-500.0,0.00050899,120]
[354693222,1740622242744,-513.0638932,0.00050899,120]
[354693223,1740622242753,-500.0,0.00050899,120]
[354693224,1740622242762,-500.0,0.00050899,120]
[354693225,1740622242772,-500.0,0.00050899,120]
[354693227,1740622242781,-500.0,0.00050899,120]
[354693229,1740622242790,-500.0,0.00050899,120]
[354693231,1740622242800,-500.0,0.00050899,120]
[354693232,1740622242812,-500.0,0.00050899,120]
[354693233,1740622242822,-500.0,0.00050899,120]
[354693234,1740622242831,-538.89587331,0.00050899,120]
[354693235,1740622242841,-500.0,0.00050899,120]
[354693236,1740622242850,-500.0,0.00050899,120]
[354693238,1740622242859,-254.43137133,0.00050899,120]
[354693240,1740622242868,-500.0,0.00050899,120]
[354693243,1740622242878,-500.0,0.00050899,120]
[354693246,1740622242888,-506.92612494,0.00050899,120]
[354693248,1740622242897,-500.0,0.00050899,120]
[354693249,1740622242906,-500.0,0.00050899,120]
[354693250,1740622242915,-500.0,0.00050899,120]
[354693251,1740622242924,-500.0,0.00050899,120]
[354693252,1740622242934,-500.0,0.00050899,120]
[354693253,1740622242943,-344.20732145,0.00050899,120]
[354693254,1740622242961,-155.79267855,0.00050899,120]
[354693255,1740622242970,-200.92732145,0.00050899,120]
[354693256,1740622242987,-299.07267855,0.00050899,120]
[354693257,1740622242997,-65.89440731,0.00050899,120]
[354693258,1740622243016,-577.3464076,0.00050899,2]
[354693259,1740622243027,-1224.33860724,0.00050899,2]
[354693260,1740622243038,-1311.87978713,0.00050899,2]
[354693261,1740622243047,-434.10559269,0.00050899,120]
[354693262,1740622243056,-500.0,0.00050899,120]
[354693263,1740622243065,-27.18271018,0.00050899,120]
[354693264,1740622243106,-472.81728982,0.00050899,120]
[354693265,1740622243116,-500.0,0.00050899,120]
[354693266,1740622243125,-500.0,0.00050899,120]
[354693267,1740622243135,-316.00911509,0.00050899,120]
[354693268,1740622243146,-183.99088491,0.00050899,120]
[354693269,1740622243155,-1028.52779852,0.00050899,120]
[354693270,1740622243248,-500.0,0.00050898,120]
[354693271,1740622243257,-945.4479528,0.00050899,120]
[354693272,1740622243268,-633.07040001,0.00050899,120]
[354693273,1740622243287,-1672.20384867,0.00050899,120]
[354693274,1740622243297,-500.0,0.00050899,120]
[354693275,1740622243306,-500.0,0.00050899,120]
[354693276,1740622243315,-500.0,0.00050899,120]
[354693277,1740622243324,-1000.0,0.00050899,120]
[354693278,1740622243334,-500.59010351,0.00050899,120]
[354693279,1740622243343,-500.0,0.00050899,120]
[354693280,1740622243352,-500.0,0.00050899,120]
[354693281,1740622243361,-500.0,0.00050899,120]
[354693282,1740622243370,-500.0,0.00050899,120]
[354693283,1740622243379,-500.0,0.00050899,120]
[354693284,1740622243387,-500.0,0.00050899,120]
[354693285,1740622243397,-500.0,0.00050899,120]
[354693286,1740622243406,-500.0,0.00050899,120]
[354693287,1740622243416,-500.0,0.00050899,120]
[354693288,1740622243425,-500.0,0.00050899,120]
[354693289,1740622243434,-500.0,0.00050899,120]
[354693290,1740622243443,-500.0,0.00050899,120]
[354693291,1740622243452,-500.0,0.00050899,120]
[354693292,1740622243462,-500.0,0.00050899,120]
[354693293,1740622243471,-500.0,0.00050899,120]
[354693295,1740622243480,-500.0,0.00050899,120]
[354693296,1740622243491,-500.0,0.00050899,120]
[354693297,1740622243500,-500.0,0.00050899,120]
[354693298,1740622243509,-224.09963851,0.00050899,120]
[354693299,1740622243518,-508.27095982,0.00050899,120]
[354693300,1740622243527,-500.0,0.00050899,120]
[354693301,1740622243536,-500.0,0.00050899,120]
[354693302,1740622243545,-500.0,0.00050899,120]
[354693303,1740622243554,-500.0,0.00050899,120]
[354693304,1740622243563,-500.0,0.00050899,120]
[354693305,1740622243572,-500.0,0.00050899,120]
[354693306,1740622243581,-500.0,0.00050899,120]
[354693307,1740622243590,-500.0,0.00050899,30]
[354693308,1740622243599,-500.0,0.00050899,120]
[354693309,1740622243608,-500.0,0.00050899,120]
[354693310,1740622243617,-500.0,0.00050899,120]
[354693311,1740622243627,-500.0,0.00050899,120]
[354693312,1740622243635,-500.0,0.00050899,120]
[354693313,1740622243644,-500.0,0.00050899,120]
[354693314,1740622243653,-509.0541635,0.00050899,120]
[354693315,1740622243662,-500.0,0.00050899,120]
[354693316,1740622243671,-500.0,0.00050899,120]
[354693317,1740622243680,-500.0,0.00050899,120]
[354693318,1740622243690,-500.0,0.00050899,120]
[354693319,1740622243699,-500.0,0.00050899,120]
[354693320,1740622243708,-500.0,0.00050899,120]
[354693321,1740622243716,-500.0,0.00050899,120]
[354693322,1740622243725,-500.0,0.00050899,120]
[354693323,1740622243735,-500.0,0.00050899,120]
[354693324,1740622243744,-500.0,0.00050899,120]
[354693325,1740622243753,-500.0,0.00050899,120]
[354693326,1740622243762,-500.0,0.00050899,120]
[354693327,1740622243771,-500.0,0.00050899,120]
[354693328,1740622243780,-500.0,0.00050899,120]
[354693329,1740622243790,-500.0,0.00050899,120]
[354693330,1740622243804,-500.0,0.00050899,120]
[354693331,1740622243813,-500.0,0.00050899,120]
[354693332,1740622243822,-500.0,0.00050899,120]
[354693333,1740622243831,-500.0,0.00050899,120]
[354693334,1740622243841,-519.15869026,0.00050899,120]
[354693335,1740622243851,-500.0,0.00050899,120]
[354693336,1740622243859,-500.0,0.00050899,120]
[354693337,1740622243868,-506.13988774,0.00050899,120]
[354693338,1740622243878,-500.0,0.00050899,120]
[354693339,1740622243888,-500.0,0.00050899,120]
[354693340,1740622243897,-500.0,0.00050899,120]
[354693341,1740622243906,-500.0,0.00050899,120]
[354693342,1740622243915,-309.58655751,0.00050899,120]
[354693343,1740622243928,-190.41344249,0.00050899,120]